bitfinex-derivatives/quotes_BTCF0:USTF0_20250528
["timestamp","ask_amount","ask_price","bid_price","bid_amount"]
[1748449404466,0.12176164,107380.0,107370.0,2.08217832]
[1748449406469,0.12176164,107380.0,107370.0,1.72137832]
[1748449407568,0.12176164,107380.0,107370.0,1.62872169]
[1748449408664,0.17666164,107380.0,107370.0,1.69805416]
[1748449409266,0.17666164,107380.0,107370.0,1.75225416]
[1748449411177,0.17666164,107380.0,107370.0,1.68292169]
[1748449411887,0.17666164,107380.0,107370.0,1.68280169]
[1748449412987,0.17666164,107380.0,107370.0,1.77545832]
[1748449413804,0.12176164,107380.0,107370.0,2.13625832]
[1748449414991,0.12176164,107380.0,107370.0,1.92108343]
[1748449415189,0.12176164,107380.0,107370.0,2.13625832]
[1748449416099,0.12176164,107380.0,107370.0,2.13725832]
[1748449416693,0.06656164,107380.0,107370.0,2.13725832]
[1748449416892,0.1112,107390.0,107380.0,0.1861894]
[1748449417187,0.1643,107390.0,107380.0,1.6453863]
[1748449418090,0.17824025,107390.0,107380.0,1.6453863]
[1748449418295,0.17824025,107390.0,107380.0,1.6463863]
[1748449418893,0.17824025,107390.0,107380.0,1.6473863]
[1748449418894,0.12334025,107390.0,107380.0,1.6473863]
[1748449419092,0.05523952,107400.0,107390.0,0.1861721]
[1748449419311,0.16433952,107400.0,107390.0,1.97516699]
[1748449419598,0.16433952,107400.0,107390.0,2.19143524]
[1748449419599,0.10923952,107400.0,107390.0,2.19143524]
[1748449419791,0.10923952,107400.0,107390.0,2.14420823]
[1748449419991,0.10923952,107400.0,107390.0,2.23739627]
[1748449420206,0.00013952,107400.0,107390.0,2.14420823]
[1748449420406,0.00013952,107400.0,107390.0,2.35938312]
[1748449421705,1e-08,107400.0,107390.0,2.45047861]
[1748449421907,0.17515777,107420.0,107410.0,0.1861374]
[1748449422106,0.17515777,107420.0,107410.0,1.62319024]
[1748449422289,0.17515777,107420.0,107410.0,1.83212491]
[1748449423007,0.0013978,107430.0,107420.0,0.1861201]
[1748449423008,0.00153732,107430.0,107420.0,0.1861201]
[1748449423203,0.16383646,107430.0,107420.0,1.22444838]
[1748449423502,0.0562,107430.0,107420.0,1.48880111]
[1748449423702,0.0562,107430.0,107420.0,1.27362622]
[1748449423912,0.04529288,107430.0,107420.0,1.61220933]
[1748449424402,0.04929288,107430.0,107420.0,1.61227025]
[1748449424795,0.04929288,107430.0,107420.0,1.62666304]
[1748449424990,0.04929288,107430.0,107420.0,1.58031939]
[1748449425298,0.05229288,107430.0,107420.0,1.57992721]
[1748449425686,0.007,107430.0,107420.0,1.57996012]
[1748449425890,0.05253952,107440.0,107430.0,0.1861029]
[1748449426083,0.79652,107460.0,107450.0,0.1860683]
[1748449426283,1.0340709,107460.0,107450.0,0.7161717]
[1748449426495,0.5983509,107460.0,107450.0,0.72637013]
[1748449427081,0.4642,107460.0,107450.0,0.72637013]
[1748449427394,0.1034,107460.0,107450.0,1.14026967]
[1748449427585,0.1034,107460.0,107450.0,0.81421276]
[1748449427769,0.1034,107460.0,107450.0,1.17501276]
[1748449427976,0.1034,107460.0,107450.0,1.17501086]
[1748449428280,0.1044,107460.0,107450.0,1.17500516]
[1748449428677,0.1044,107460.0,107450.0,0.91828516]
[1748449429085,0.1054,107460.0,107450.0,0.90386534]
[1748449429285,0.1582,107460.0,107450.0,1.25828609]
[1748449429486,0.1582,107460.0,107450.0,1.25827852]
[1748449429693,0.17181583,107460.0,107450.0,1.25827852]
[1748449430178,0.17181583,107460.0,107450.0,1.31497894]
[1748449430480,0.17181583,107460.0,107450.0,1.30055819]
[1748449430790,0.17181583,107460.0,107450.0,1.31498337]
[1748449431175,0.17181583,107460.0,107450.0,1.28024785]
[1748449431679,0.17181583,107460.0,107450.0,1.26582334]
[1748449431883,0.17181583,107460.0,107450.0,1.28024995]
[1748449433081,0.11901583,107460.0,107450.0,2.13036995]
[1748449433287,0.1054,107460.0,107450.0,2.1303156]
[1748449433583,0.1054,107460.0,107450.0,2.16505044]
[1748449434077,0.1054,107460.0,107450.0,2.1652506]
[1748449434481,0.1054,107460.0,107450.0,2.16525085]
[1748449435779,0.1054,107460.0,107450.0,2.16521983]
[1748449436485,0.1054,107460.0,107450.0,2.16800983]
[1748449436691,0.1054,107460.0,107450.0,1.26761088]
[1748449436881,0.1054,107460.0,107450.0,1.80709088]
[1748449437284,0.1054,107460.0,107450.0,2.16789168]
[1748449437480,0.1054,107460.0,107450.0,2.13295457]
[1748449437788,0.1054,107460.0,107450.0,2.16789168]
[1748449438181,0.1054,107460.0,107450.0,1.80709168]
[1748449438385,0.1054,107460.0,107450.0,1.8072122]
[1748449438587,0.1054,107460.0,107450.0,1.5571002]
[1748449438787,0.1054,107460.0,107450.0,2.13307894]
[1748449438983,0.1054,107460.0,107450.0,1.77227894]
[1748449439292,0.1054,107460.0,107450.0,2.07637894]
[1748449439588,0.1054,107460.0,107450.0,2.13267894]
[1748449439775,0.1054,107460.0,107450.0,1.17598026]
[1748449439978,0.1054,107460.0,107450.0,1.71542026]
[1748449440177,0.1054,107460.0,107450.0,1.71554026]
[1748449440385,0.4662,107460.0,107450.0,0.95806537]
[1748449440586,0.6522509,107460.0,107450.0,0.62402537]
[1748449440883,0.6522509,107460.0,107450.0,0.88402215]
[1748449441492,0.4662,107460.0,107450.0,0.88390215]
[1748449441678,0.4662,107460.0,107450.0,0.86963793]
[1748449441873,0.4662,107460.0,107450.0,1.04481282]
[1748449442586,0.4662,107460.0,107450.0,1.07481282]
[1748449442793,0.4662,107460.0,107450.0,1.12114317]
[1748449442987,0.4662,107460.0,107450.0,1.07481282]
[1748449443296,0.4662,107460.0,107450.0,1.09955582]
[1748449443494,0.4662,107460.0,107450.0,1.15610429]
[1748449443794,0.4662,107460.0,107450.0,1.22320407]
[1748449444186,0.4662,107460.0,107450.0,1.17686889]
[1748449444495,0.4662,107460.0,107450.0,1.2231991]
[1748449445194,0.4662,107460.0,107450.0,0.8531991]
[1748449445491,0.4662,107460.0,107450.0,1.1931991]
[1748449445995,0.4662,107460.0,107450.0,1.15830434]
[1748449446194,0.46183772,107460.0,107450.0,1.22781936]
[1748449446987,0.46183772,107460.0,107450.0,1.22769712]
[1748449447586,0.46183772,107460.0,107450.0,1.22769701]
[1748449447988,0.46183772,107460.0,107450.0,1.28229701]
[1748449448185,0.10103772,107460.0,107450.0,1.23596666]
[1748449448494,0.10103772,107460.0,107450.0,1.23595666]
[1748449448695,0.10103772,107460.0,107450.0,1.59675666]
[1748449448998,0.10103772,107460.0,107450.0,1.23595666]
[1748449449598,0.10103772,107460.0,107450.0,1.28855666]
[1748449450396,0.10103772,107460.0,107450.0,1.28855665]
[1748449450996,0.10103772,107460.0,107450.0,1.28855667]
[1748449452702,0.10103772,107460.0,107450.0,1.07338178]
[1748449452896,0.10103772,107460.0,107450.0,1.28857985]
[1748449453094,0.10103772,107460.0,107450.0,1.288684]
[1748449453392,0.10103772,107460.0,107450.0,1.27859695]
[1748449453592,0.10103772,107460.0,107450.0,1.28870007]
[1748449453792,0.10103772,107460.0,107450.0,1.21918383]
[1748449454197,0.10103772,107460.0,107450.0,0.95140894]
[1748449454400,0.46183772,107460.0,107450.0,1.16658383]
[1748449455106,0.46183772,107460.0,107450.0,1.16660589]
[1748449455789,0.46183772,107460.0,107450.0,0.951431]
[1748449455991,0.46183772,107460.0,107450.0,1.16663739]
[1748449456196,0.46183772,107460.0,107450.0,1.22801812]
[1748449456497,0.46183772,107460.0,107450.0,1.23814393]
[1748449456697,0.46183772,107460.0,107450.0,1.23814293]
[1748449456899,0.46183772,107460.0,107450.0,1.25983089]
[1748449456900,0.45529455,107460.0,107450.0,1.25983089]
[1748449457103,0.45529455,107460.0,107450.0,1.24557545]
[1748449457408,0.45529455,107460.0,107450.0,1.25983159]
[1748449458609,0.45529455,107460.0,107450.0,1.28954967]
[1748449458810,0.45529455,107460.0,107450.0,1.31375339]
[1748449459212,0.45529455,107460.0,107450.0,1.31375312]
[1748449460002,0.45529455,107460.0,107450.0,1.31374305]
[1748449460613,0.45529455,107460.0,107450.0,1.31374317]
[1748449461412,0.45529455,107460.0,107450.0,1.31374315]
[1748449461912,0.45529455,107460.0,107450.0,1.31374318]
[1748449462112,0.45529455,107460.0,107450.0,1.31374319]
[1748449462501,0.45529455,107460.0,107450.0,1.31374317]
[1748449462805,0.45529455,107460.0,107450.0,1.22105281]
[1748449463306,0.45529455,107460.0,107450.0,1.22105437]
[1748449463906,0.45529455,107460.0,107450.0,1.22107539]
[1748449464505,0.45529455,107460.0,107450.0,1.22107665]
[1748449464914,0.45529455,107460.0,107450.0,1.31376954]
[1748449465502,0.45529455,107460.0,107450.0,1.09859465]
[1748449465699,0.45529455,107460.0,107450.0,1.31376954]
[1748449466108,0.45529455,107460.0,107450.0,1.09859465]
[1748449466309,0.45529455,107460.0,107450.0,1.28954967]
[1748449466511,0.45529455,107460.0,107450.0,1.31382054]
[1748449466710,0.45529455,107460.0,107450.0,1.31382066]
[1748449466910,0.45429455,107460.0,107450.0,1.31382066]
[1748449467115,0.45329455,107460.0,107450.0,1.31582074]
[1748449467306,0.45329455,107460.0,107450.0,1.3078643]
[1748449467511,0.45329455,107460.0,107450.0,1.31782025]
[1748449467710,0.45329455,107460.0,107450.0,1.31782027]
[1748449467911,0.45329455,107460.0,107450.0,1.3178201]
[1748449468115,1.19758475,107460.0,107450.0,0.55487919]
[1748449468412,1.21952655,107460.0,107450.0,0.47202986]
[1748449468610,1.71491765,107460.0,107450.0,0.39482848]
[1748449468813,1.71491765,107460.0,107450.0,0.53327205]
[1748449468814,1.7729704,107460.0,107450.0,0.53327205]
[1748449469112,1.8164549,107460.0,107450.0,0.52343249]
[1748449469311,1.84550128,107460.0,107450.0,0.48779859]
[1748449469502,1.26305678,107460.0,107450.0,0.47348166]
[1748449469706,1.75836241,107460.0,107450.0,0.48779641]
[1748449470713,1.75836241,107460.0,107450.0,0.48779526]
[1748449471016,1.75836241,107460.0,107450.0,0.48779528]
[1748449471412,1.81634175,107460.0,107450.0,0.48779547]
[1748449471615,1.75836241,107460.0,107450.0,0.48779547]
[1748449472212,1.75836241,107460.0,107450.0,0.48579547]
[1748449472518,1.76036241,107460.0,107450.0,0.48379547]
[1748449473111,1.76036241,107460.0,107450.0,0.46948166]
[1748449473416,1.81834175,107460.0,107450.0,0.48379537]
[1748449473817,1.81834175,107460.0,107450.0,0.48367537]
[1748449474017,1.81834175,107460.0,107450.0,0.29760677]
[1748449474217,1.82834175,107460.0,107450.0,0.48373918]
[1748449474920,1.82834968,107460.0,107450.0,0.48373914]
[1748449475219,1.57834968,107460.0,107450.0,0.48373914]
[1748449475517,0.91809479,107460.0,107450.0,0.49373914]
[1748449475716,1.35317479,107460.0,107450.0,0.49373914]
[1748449475912,1.29519545,107460.0,107450.0,0.49373914]
[1748449476216,1.29519545,107460.0,107450.0,0.49373922]
[1748449476809,1.29519545,107460.0,107450.0,0.49373921]
[1748449479214,1.29519545,107460.0,107450.0,0.48373921]
[1748449479613,1.29519545,107460.0,107450.0,0.48373999]
[1748449482221,1.29519545,107460.0,107450.0,0.48372784]
[1748449482623,1.31519545,107460.0,107450.0,0.48372784]
[1748449483026,1.53037034,107460.0,107450.0,0.48372784]
[1748449483225,1.53033034,107460.0,107450.0,0.48372784]
[1748449483427,1.31515545,107460.0,107450.0,0.48372784]
[1748449483624,1.27166276,107460.0,107450.0,0.48372784]
[1748449483831,1.53023932,107460.0,107450.0,0.29765924]
[1748449484125,1.53023932,107460.0,107450.0,0.48372787]
[1748449484822,1.53023932,107460.0,107450.0,0.48372786]
[1748449485425,1.53023932,107460.0,107450.0,0.48374112]
[1748449488124,1.63195612,107460.0,107450.0,0.48374112]
[1748449488325,1.63195612,107460.0,107450.0,0.51962708]
[1748449488627,1.53889211,107460.0,107450.0,0.51962708]
[1748449489022,0.99997211,107460.0,107450.0,0.51962708]
[1748449489326,1.53873211,107460.0,107450.0,0.57272708]
[1748449489533,0.88855722,107460.0,107450.0,0.57272708]
[1748449489833,1.32355722,107460.0,107450.0,0.57272708]
[1748449490629,0.78479722,107460.0,107450.0,0.57272708]
[1748449490830,1.32355722,107460.0,107450.0,0.62023589]
[1748449491030,1.32355722,107460.0,107450.0,0.67473589]
[1748449491220,1.32355722,107460.0,107450.0,0.62722708]
[1748449491427,0.88855722,107460.0,107450.0,0.62722686]
[1748449491629,1.32351722,107460.0,107450.0,0.67473567]
[1748449492324,1.32351722,107460.0,107450.0,0.67473559]
[1748449492831,1.32351722,107460.0,107450.0,0.67500129]
[1748449493525,1.32351722,107460.0,107450.0,0.6750618]
[1748449494536,1.32351722,107460.0,107450.0,0.48899574]
[1748449495033,1.32351722,107460.0,107450.0,0.54049574]
[1748449497731,1.32351722,107460.0,107450.0,0.52617353]
[1748449497941,1.32351722,107460.0,107450.0,0.5404884]
[1748449499126,1.32351722,107460.0,107450.0,0.49297959]
[1748449500438,1.32351722,107460.0,107450.0,0.47866472]
[1748449500732,1.32351722,107460.0,107450.0,0.49298203]
[1748449500926,1.32351722,107460.0,107450.0,0.49298206]
[1748449501323,1.32351722,107460.0,107450.0,0.54049087]
[1748449501727,1.32351722,107460.0,107450.0,0.5404884]
[1748449502736,1.32351722,107460.0,107450.0,0.54048847]
[1748449502943,1.32339722,107460.0,107450.0,0.72655707]
[1748449503138,1.36697602,107460.0,107450.0,0.72655707]
[1748449503440,1.36697602,107460.0,107450.0,0.54048847]
[1748449503640,1.23625809,107460.0,107450.0,0.54048847]
[1748449504144,1.32339722,107460.0,107450.0,0.54048847]
[1748449504942,1.32339722,107460.0,107450.0,0.54036847]
[1748449505145,1.32339722,107460.0,107450.0,0.54036844]
[1748449505336,1.32339722,107460.0,107450.0,0.52605103]
[1748449505538,1.32339722,107460.0,107450.0,0.54036772]
[1748449506040,1.32339722,107460.0,107450.0,0.72643629]
[1748449506230,1.32339722,107460.0,107450.0,0.72643621]
[1748449506840,0.74122804,107460.0,107450.0,0.72643621]
[1748449507038,1.27978804,107460.0,107450.0,0.69028705]
[1748449507740,1.27978804,107460.0,107450.0,0.69028676]
[1748449508741,0.74122804,107460.0,107450.0,0.69028676]
[1748449509047,1.09117471,107460.0,107450.0,0.92920562]
[1748449509339,1.09117471,107460.0,107450.0,1.02421125]
[1748449509546,1.09117471,107460.0,107450.0,1.02421044]
[1748449509734,1.13477414,107460.0,107450.0,0.92920481]
[1748449510130,0.59045073,107460.0,107450.0,0.93120481]
[1748449510328,1.02521073,107460.0,107450.0,0.91688933]
[1748449510537,1.02521073,107460.0,107450.0,0.93120069]
[1748449512142,1.02517073,107460.0,107450.0,0.91688933]
[1748449512339,1.02517073,107460.0,107450.0,0.9311791]
[1748449512842,0.9815713,107460.0,107450.0,0.97961241]
[1748449513643,0.9815713,107460.0,107450.0,0.97961244]
[1748449515547,1.0343713,107460.0,107450.0,0.97961056]
[1748449516441,1.0343713,107460.0,107450.0,0.97961018]
[1748449518243,1.0343713,107460.0,107450.0,0.97961019]
[1748449519138,1.35302619,107460.0,107450.0,0.50868631]
[1748449519341,1.4489445,107460.0,107450.0,0.38912022]
[1748449519834,1.4489445,107460.0,107450.0,0.53887175]
[1748449520337,1.4489445,107460.0,107450.0,0.35280325]
[1748449520534,1.4799445,107460.0,107450.0,0.35180325]
[1748449521146,1.58254466,107460.0,107450.0,0.43555617]
[1748449521646,1.58254466,107460.0,107450.0,0.38245617]
[1748449522648,1.58254466,107460.0,107450.0,0.38245735]
[1748449523039,1.57346891,107460.0,107450.0,0.11613774]
[1748449523243,1.51548957,107460.0,107450.0,0.1525583]
[1748449523437,1.51548957,107460.0,107450.0,0.15244199]
[1748449523742,1.51548957,107460.0,107450.0,0.15256199]
[1748449523941,1.52987989,107460.0,107450.0,0.06770812]
[1748449524250,1.52987989,107460.0,107450.0,0.06770816]
[1748449525938,1.52987989,107460.0,107450.0,0.06770836]
[1748449526356,1.314705,107460.0,107450.0,0.06770836]
[1748449526647,1.314705,107460.0,107450.0,0.36060836]
[1748449526839,0.880065,107460.0,107450.0,0.54667696]
[1748449527044,1.314625,107460.0,107450.0,0.60207696]
[1748449527343,1.314625,107460.0,107450.0,0.41600349]
[1748449527650,1.31462488,107460.0,107450.0,0.41610778]
[1748449528540,1.31462488,107460.0,107450.0,0.58778166]
[1748449528745,1.31462488,107460.0,107450.0,0.60219087]
[1748449529247,1.31462488,107460.0,107450.0,0.60219086]
[1748449529841,1.31462488,107460.0,107450.0,0.41612226]
[1748449530855,1.31462488,107460.0,107450.0,0.60219096]
[1748449531149,1.31462488,107460.0,107450.0,0.6021821]
[1748449531351,0.88006488,107460.0,107450.0,0.58778176]
[1748449531564,1.31462488,107460.0,107450.0,0.83030259]
[1748449531746,0.71848805,107460.0,107450.0,0.88180259]
[1748449532054,1.25660805,107460.0,107450.0,0.88180138]
[1748449532443,0.71848805,107460.0,107450.0,0.66662649]
[1748449532644,1.25660805,107460.0,107450.0,0.66662649]
[1748449533057,1.24753297,107460.0,107450.0,0.66662649]
[1748449533550,1.24753297,107460.0,107450.0,0.66646341]
[1748449533963,1.24753297,107460.0,107450.0,0.66646407]
[1748449534160,1.24753297,107460.0,107450.0,0.66646409]
[1748449534846,1.3055498,107460.0,107450.0,0.70305158]
[1748449535145,1.3055498,107460.0,107450.0,0.69026843]
[1748449535344,1.3055498,107460.0,107450.0,0.70306038]
[1748449535539,1.3055498,107460.0,107450.0,0.88164778]
[1748449535753,1.6028498,107460.0,107450.0,0.88164778]
[1748449535948,1.6028498,107460.0,107450.0,0.66647289]
[1748449536157,1.6028498,107460.0,107450.0,0.66648187]
[1748449536553,1.5593373,107460.0,107450.0,0.66648187]
[1748449536755,1.60287819,107460.0,107450.0,0.66648187]
[1748449536950,1.16831819,107460.0,107450.0,0.66648187]
[1748449537149,1.60287819,107460.0,107450.0,0.66648187]
[1748449538148,1.60287819,107460.0,107450.0,0.70309327]
[1748449538547,1.60287819,107460.0,107450.0,0.88165676]
[1748449538749,1.60287819,107460.0,107450.0,0.7030698]
[1748449538950,1.65587819,107460.0,107450.0,0.6664584]
[1748449539658,1.65587819,107460.0,107450.0,0.6520492]
[1748449539854,1.65587819,107460.0,107450.0,0.66645844]
[1748449541261,1.65587873,107460.0,107450.0,0.66649423]
[1748449542858,1.12951643,107460.0,107450.0,0.90546529]
[1748449543155,1.12044128,107460.0,107450.0,0.96673701]
[1748449543360,1.51146425,107460.0,107450.0,0.91730692]
[1748449543558,1.45344742,107460.0,107450.0,0.9885597]
[1748449543759,1.45344742,107460.0,107450.0,0.98855884]
[1748449544147,1.45344742,107460.0,107450.0,0.97414274]
[1748449544449,1.45244742,107460.0,107450.0,0.98855879]
[1748449544649,1.45244742,107460.0,107450.0,0.98955879]
[1748449545054,1.45144742,107460.0,107450.0,0.98955879]
[1748449545258,1.45144742,107460.0,107450.0,0.9905595]
[1748449545458,0.91332742,107460.0,107450.0,0.9905595]
[1748449545663,1.34784491,107460.0,107450.0,0.9905595]
[1748449545859,1.30424532,107460.0,107450.0,0.90488996]
[1748449546065,1.30424532,107460.0,107450.0,0.91930794]
[1748449547464,1.00694532,107460.0,107450.0,0.91930783]
[1748449547770,0.57242532,107460.0,107450.0,0.91930783]
[1748449547967,1.00694532,107460.0,107450.0,0.70413287]
[1748449548167,1.00694532,107460.0,107450.0,0.91930776]
[1748449548366,1.00694532,107460.0,107450.0,0.91930771]
[1748449548565,1.00694532,107460.0,107450.0,0.70413281]
[1748449548965,1.00694532,107460.0,107450.0,0.9193077]
[1748449549863,1.00694532,107460.0,107450.0,0.95616928]
[1748449550463,1.00694532,107460.0,107450.0,0.95616936]
[1748449551268,1.00694532,107460.0,107450.0,0.94175154]
[1748449551460,1.00694532,107460.0,107450.0,0.95616937]
[1748449551966,1.00690532,107460.0,107450.0,0.91930633]
[1748449552563,1.00690532,107460.0,107450.0,0.91930613]
[1748449553677,1.05050491,107460.0,107450.0,0.70413124]
[1748449553867,1.11550532,107460.0,107450.0,0.68959507]
[1748449554063,1.35717821,107460.0,107450.0,0.94568525]
[1748449554374,0.68102532,107460.0,107450.0,0.94580525]
[1748449554554,1.15910491,107460.0,107450.0,0.93138796]
[1748449554958,1.15910491,107460.0,107450.0,0.94580505]
[1748449555155,1.15910491,107460.0,107450.0,0.93138796]
[1748449556174,1.15910491,107460.0,107450.0,0.91906686]
[1748449556355,1.15910491,107460.0,107450.0,0.90452458]
[1748449557362,1.15910491,107460.0,107450.0,0.91904582]
[1748449557870,0.72462491,107460.0,107450.0,0.91904592]
[1748449558064,1.15910491,107460.0,107450.0,0.91904592]
[1748449558261,1.15910491,107460.0,107450.0,0.91904689]
[1748449558571,1.15910491,107460.0,107450.0,0.90452458]
[1748449559161,1.15906623,107460.0,107450.0,0.90452458]
[1748449559363,1.15906623,107460.0,107450.0,0.91452458]
[1748449559564,1.15906623,107460.0,107450.0,0.92904692]
[1748449560269,1.15906623,107460.0,107450.0,0.92904795]
[1748449560473,1.15906623,107460.0,107450.0,0.9290479]
[1748449560670,1.15906623,107460.0,107450.0,0.91452458]
[1748449560971,0.72458623,107460.0,107450.0,0.92904778]
[1748449561171,1.15902623,107460.0,107450.0,0.92904778]
[1748449561566,0.72458623,107460.0,107450.0,0.92904778]
[1748449561766,1.05042623,107460.0,107450.0,0.92904778]
[1748449562466,1.05042623,107460.0,107450.0,0.91452458]
[1748449562679,1.00686532,107460.0,107450.0,1.00029673]
[1748449563569,1.00686532,107460.0,107450.0,1.00029663]
[1748449564077,1.00686532,107460.0,107450.0,0.98577736]
[1748449564280,0.33357402,107460.0,107450.0,0.98577736]
[1748449564576,0.77018132,107470.0,107460.0,0.1860511]
[1748449564577,0.99633747,107470.0,107460.0,0.1860511]
[1748449564768,0.99633747,107470.0,107460.0,0.91956624]
[1748449564975,0.36219651,107470.0,107460.0,0.93409306]
[1748449565169,0.36219651,107470.0,107460.0,0.89956624]
[1748449565170,0.00139651,107470.0,107460.0,0.89956624]
[1748449565370,0.00139651,107470.0,107460.0,1.56036624]
[1748449565664,1.0742665,107480.0,107470.0,0.1850338]
[1748449565870,1.1290665,107480.0,107470.0,0.93352439]
[1748449566071,1.1290665,107480.0,107470.0,0.94816725]
[1748449566271,1.1290665,107480.0,107470.0,0.93364439]
[1748449566472,0.6946265,107480.0,107470.0,0.93364439]
[1748449566684,1.1290665,107480.0,107470.0,0.93264439]
[1748449566879,1.1290665,107480.0,107470.0,0.94543439]
[1748449567068,1.1290665,107480.0,107470.0,0.95995723]
[1748449567273,1.2353665,107480.0,107470.0,0.95995724]
[1748449567570,1.2353665,107480.0,107470.0,0.94543439]
[1748449567772,1.2353665,107480.0,107470.0,0.91044499]
[1748449568079,1.2373665,107480.0,107470.0,0.91044499]
[1748449568672,1.2373665,107480.0,107470.0,0.91156499]
[1748449568872,1.2373665,107480.0,107470.0,0.911565]
[1748449569180,1.2373665,107480.0,107470.0,0.91156502]
[1748449569577,1.24961055,107480.0,107470.0,0.69775551]
[1748449569978,1.24961055,107480.0,107470.0,0.69763551]
[1748449570179,1.24961055,107480.0,107470.0,0.69775551]
[1748449571068,1.24961055,107480.0,107470.0,0.91256502]
[1748449571780,1.15652075,107480.0,107470.0,0.91256502]
[1748449571983,0.72216075,107480.0,107470.0,0.91256502]
[1748449572284,1.15652075,107480.0,107470.0,0.91256656]
[1748449573281,1.15652075,107480.0,107470.0,0.9125712]
[1748449573683,1.15652075,107480.0,107470.0,0.85877238]
[1748449573881,1.15652075,107480.0,107470.0,0.64384305]
[1748449574075,1.47477026,107480.0,107470.0,0.34842925]
[1748449574277,1.47477026,107480.0,107470.0,0.29932056]
[1748449574477,1.47477026,107480.0,107470.0,0.10932056]
[1748449574681,1.51820817,107480.0,107470.0,0.10944056]
[1748449574881,1.51820817,107480.0,107470.0,0.10932946]
[1748449575385,1.51821452,107480.0,107470.0,0.10933115]
[1748449575587,1.55821452,107480.0,107470.0,0.10945115]
[1748449577187,1.64070501,107480.0,107470.0,0.10945115]
[1748449577384,1.85551452,107480.0,107470.0,0.10945115]
[1748449577788,1.85551452,107480.0,107470.0,0.10942064]
[1748449578093,1.81207026,107480.0,107470.0,0.09491]
[1748449578283,1.81207026,107480.0,107470.0,0.10942059]
[1748449578879,1.59726075,107480.0,107470.0,0.10942059]
[1748449579086,1.81207026,107480.0,107470.0,0.10942059]
[1748449579892,1.81207026,107480.0,107460.0,0.00153535]
[1748449579893,0.1860338,107470.0,107460.0,0.00153535]
[1748449580193,1.8423378,107470.0,107460.0,0.06443967]
[1748449580393,0.88782512,107470.0,107460.0,0.23758645]
[1748449580578,0.82980829,107470.0,107460.0,0.28988645]
[1748449580782,0.69635874,107470.0,107460.0,0.69469596]
[1748449581085,1.23407874,107470.0,107460.0,0.72769596]
[1748449581285,1.23407874,107470.0,107460.0,0.72781596]
[1748449581486,1.25407874,107470.0,107460.0,0.51288645]
[1748449581782,1.25407874,107470.0,107460.0,0.51300645]
[1748449582192,1.25507874,107470.0,107460.0,0.51300645]
[1748449582888,1.23507874,107470.0,107460.0,0.78091596]
[1748449583098,1.53237874,107470.0,107460.0,0.78091596]
[1748449583588,0.89005874,107470.0,107460.0,0.78091596]
[1748449583791,1.32437874,107470.0,107460.0,0.78091596]
[1748449584387,0.89005874,107470.0,107460.0,0.78091596]
[1748449584694,0.83605874,107470.0,107460.0,0.85990465]
[1748449584892,1.27037874,107470.0,107460.0,0.93338828]
[1748449585189,1.27037874,107470.0,107460.0,0.93538828]
[1748449585190,0.53775874,107470.0,107460.0,0.93538828]
[1748449585487,0.9811537,107470.0,107460.0,0.93538828]
[1748449585794,0.9811537,107470.0,107460.0,0.93638828]
[1748449586387,0.9811137,107470.0,107460.0,0.93638828]
[1748449586593,0.79508,107470.0,107460.0,0.93638828]
[1748449586794,0.9811137,107470.0,107460.0,0.93638828]
[1748449587095,0.79508,107470.0,107460.0,0.93638828]
[1748449587293,0.9811138,107470.0,107460.0,0.93638828]
[1748449587795,0.5468338,107470.0,107460.0,0.93638828]
[1748449588094,0.79508,107470.0,107460.0,0.93638828]
[1748449588295,0.9811138,107470.0,107460.0,0.93689134]
[1748449589595,0.79508,107470.0,107460.0,0.93689134]
[1748449590392,0.3608,107470.0,107460.0,0.93689134]
[1748449590594,0.34567919,107470.0,107460.0,0.93689134]
[1748449590796,0.34567919,107470.0,107460.0,0.88790265]
[1748449591890,0.34567919,107470.0,107460.0,0.90219849]
[1748449592196,0.34567919,107470.0,107460.0,0.88790265]
[1748449592687,0.34567919,107470.0,107460.0,0.90219885]
[1748449592887,0.34567919,107470.0,107460.0,0.88790265]
[1748449593689,0.34567919,107470.0,107460.0,0.90219884]
[1748449593895,0.34567919,107470.0,107460.0,0.88790265]
[1748449594094,0.34567919,107470.0,107460.0,0.90219882]
[1748449595196,0.40167919,107470.0,107460.0,0.90219899]
[1748449595394,0.34567919,107470.0,107460.0,0.90219899]
[1748449595597,0.34567919,107470.0,107460.0,1.09219899]
[1748449595798,0.34567919,107470.0,107460.0,1.09219902]
[1748449596503,0.34567919,107470.0,107460.0,1.07790265]
[1748449596694,1.25581365,107480.0,107470.0,0.1860338]
[1748449596892,1.25581365,107480.0,107470.0,0.90367252]
[1748449597095,1.25581365,107480.0,107470.0,0.91796757]
[1748449597291,1.25581365,107480.0,107470.0,0.91796743]
[1748449597899,1.25581365,107480.0,107470.0,0.90367252]
[1748449598093,1.25581365,107480.0,107470.0,0.91796704]
[1748449598294,1.25581365,107480.0,107470.0,0.91796678]
[1748449598998,1.25577365,107480.0,107470.0,0.90467252]
[1748449599188,1.25577365,107480.0,107470.0,0.9189668]
[1748449599695,1.25577365,107480.0,107470.0,0.90467252]
[1748449599891,1.25577365,107480.0,107470.0,0.91896671]
[1748449600292,1.25577365,107480.0,107470.0,0.90467252]
[1748449600494,1.25577365,107480.0,107470.0,0.91896678]
[1748449601189,1.25577365,107480.0,107470.0,0.91896614]
[1748449601398,1.25577365,107480.0,107470.0,0.9194692]
[1748449601599,1.25577365,107480.0,107470.0,0.91946907]
[1748449601904,0.77506765,107480.0,107470.0,0.91946907]
[1748449602215,1.20926765,107480.0,107470.0,0.90517558]
[1748449602394,1.20926765,107480.0,107470.0,0.91946904]
[1748449602995,1.20926765,107480.0,107470.0,0.91946895]
[1748449603190,1.20926765,107480.0,107470.0,0.86376855]
[1748449603403,1.20926765,107480.0,107470.0,0.86376723]
[1748449603705,1.20926765,107480.0,107470.0,0.8637669]
[1748449603896,1.20926765,107480.0,107470.0,0.86376624]
[1748449604204,1.20926765,107480.0,107470.0,0.84947558]
[1748449604502,1.20926765,107480.0,107470.0,0.86376616]
[1748449604703,1.20926765,107480.0,107470.0,0.86376631]
[1748449605301,1.20926765,107480.0,107470.0,0.91806631]
[1748449605501,1.20926765,107480.0,107470.0,0.91806647]
[1748449606709,1.20926765,107480.0,107470.0,0.90377558]
[1748449606905,1.20926765,107480.0,107470.0,0.91809446]
[1748449607803,1.20926765,107480.0,107470.0,0.91809488]
[1748449609101,1.20922765,107480.0,107470.0,0.91809488]
[1748449609300,1.20922765,107480.0,107470.0,0.91809489]
[1748449611512,1.25268616,107480.0,107470.0,0.94235605]
[1748449611711,1.25268616,107480.0,107470.0,0.92793]
[1748449611902,1.25268616,107480.0,107470.0,0.94235831]
[1748449613210,1.25268616,107480.0,107470.0,0.88805831]
[1748449614111,1.25268616,107480.0,107470.0,0.6732488]
[1748449614313,1.25268616,107480.0,107470.0,0.88806066]
[1748449614512,1.25268616,107480.0,107470.0,0.88806068]
[1748449615609,1.25268616,107480.0,107470.0,0.87363]
[1748449615610,1.25283937,107480.0,107470.0,0.87363]
[1748449615914,1.25283937,107480.0,107470.0,0.88806065]
[1748449616412,1.25279937,107480.0,107470.0,0.88806065]